bitfinex-derivatives/quotes_SOLF0:USTF0_20241011
["timestamp","ask_amount","ask_price","bid_price","bid_amount"]
[1728678632409,8.58502,145.79,145.75,8.46]
[1728678632614,3.4301,145.78,145.75,11.8906]
[1728678634200,3.4302,145.77,145.75,11.8906]
[1728678635014,3.4301,145.78,145.75,11.8906]
[1728678642519,12.00444786,145.79,145.75,11.8906]
[1728678642725,8.46,145.76,145.69,1.368]
[1728678642920,8.46,145.74,145.7,4.96]
[1728678643128,11.8911,145.74,145.7,4.96]
[1728678643526,11.8911,145.74,145.71,3.4316]
[1728678646030,11.8911,145.74,145.72,3.4313]
[1728678646724,8.46,145.74,145.72,3.4313]
[1728678646924,8.46,145.76,145.73,3.4311]
[1728678647128,4.96,145.78,145.73,8.46]
[1728678647324,8.3901,145.78,145.75,8.46]
[1728678647525,4.96,145.78,145.75,11.8905]
[1728678647727,4.96,145.78,145.75,3.4305]
[1728678648228,8.3901,145.78,145.75,3.4305]
[1728678649232,3.4301,145.78,145.75,3.4305]
[1728678651032,8.58502,145.79,145.75,3.4305]
[1728678651232,3.4302,145.77,145.75,3.4305]
[1728678652635,3.4302,145.78,145.75,3.4305]
[1728678654524,11.8902,145.78,145.75,3.4305]
[1728678654932,11.8901,145.78,145.75,3.4305]
[1728678655733,8.46,145.78,145.75,3.4305]
[1728678655938,3.4302,145.77,145.75,3.4305]
[1728678656447,11.8901,145.78,145.73,13.42]
[1728678656642,11.8901,145.78,145.76,3.4304]
[1728678661134,11.8901,145.78,145.75,3.4305]
[1728678661344,8.46,145.77,145.73,4.96]
[1728678662344,8.46,145.77,145.73,13.42]
[1728678662649,11.8903,145.77,145.74,3.4308]
[1728678668549,3.4304,145.76,145.74,3.4308]
[1728678668947,8.46,145.77,145.73,8.3911]
[1728678669949,3.4305,145.76,145.73,8.3911]
[1728678672454,3.4309,145.74,145.73,4.96]
[1728678672846,8.46,145.74,145.69,1.368]
[1728678673042,4.94,145.78,145.69,1.368]
[1728678673043,8.46,145.72,145.69,6.308]
[1728678673247,8.46,145.72,145.69,4.94]
[1728678673545,3.4316,145.71,145.69,4.94]
[1728678674448,3.4318,145.7,145.67,3.55742]
[1728678674754,8.46,145.69,145.67,0.12502]
[1728678675449,8.46,145.68,145.67,0.12502]
[1728678675646,11.8923,145.68,145.67,0.12502]
[1728678679349,3.4323,145.69,145.67,0.12502]
[1728678679548,8.46,145.68,145.67,0.12502]
[1728678680347,11.8923,145.68,145.67,0.12502]
[1728678682750,3.4337,145.62,145.61,0.12502]
[1728678683347,8.46,145.63,145.61,0.12502]
[1728678683559,8.46,145.65,145.61,0.12502]
[1728678684052,8.46,145.65,145.61,3.55882]
[1728678684458,11.8931,145.65,145.61,3.55882]
[1728678685753,16.8529,145.66,145.62,3.4335]
[1728678686056,13.42,145.66,145.61,8.58502]
[1728678686255,8.46,145.68,145.64,8.46]
[1728678687057,3.4326,145.67,145.64,8.46]
[1728678690562,3.4326,145.67,145.63,11.8933]
[1728678691260,11.8926,145.67,145.63,11.8933]
[1728678699467,3.4329,145.66,145.63,11.8933]
[1728678699765,11.8929,145.66,145.63,3.4333]
[1728678709473,1.3681,145.69,145.63,8.46]
[1728678709669,8.46,145.68,145.63,8.46]
[1728678710473,8.46,145.68,145.64,3.4331]
[1728678711768,1.3681,145.69,145.66,3.4327]
[1728678712072,8.46,145.7,145.66,3.4327]
[1728678712467,3.4322,145.69,145.66,3.4327]
[1728678713380,8.46,145.69,145.66,3.4327]
[1728678713672,8.46,145.69,145.66,3.4328]
[1728678715375,3.4323,145.68,145.66,3.4328]
[1728678719782,8.46,145.69,145.66,3.4328]
[1728678720084,11.8922,145.69,145.66,3.4328]
[1728678721986,8.46,145.69,145.66,3.4328]
[1728678722185,3.4323,145.68,145.66,3.4328]
[1728678722787,8.46,145.68,145.65,4.94]
[1728678722985,3.4326,145.67,145.65,4.94]
[1728678728290,3.432,145.7,145.65,8.3728]
[1728678728480,1.42232,145.73,145.66,8.46]
[1728678728685,0.12502,145.73,145.67,8.46]
[1728678728889,3.4316,145.71,145.68,3.4322]
[1728678735595,8.46,145.72,145.67,8.46]
[1728678735797,3.4322,145.69,145.66,3.4327]
[1728678736299,11.8925,145.68,145.65,3.4329]
[1728678736499,11.8925,145.68,145.65,8.3729]
[1728678738794,8.46,145.69,145.65,4.94]
[1728678738994,8.46,145.7,145.66,8.46]
[1728678739495,11.892,145.7,145.67,3.4325]
[1728678748007,8.46,145.7,145.65,13.4]
[1728678748208,3.4321,145.69,145.66,3.4327]
[1728678748907,11.8919,145.7,145.66,3.4327]
[1728678749109,11.8919,145.7,145.67,3.4325]
[1728678754414,8.46,145.69,145.65,8.3728]
[1728678755505,3.4323,145.68,145.65,8.3728]
[1728678758415,3.4323,145.68,145.65,4.94]
[1728678758614,3.4323,145.68,145.66,3.4328]
[1728678758816,3.4322,145.69,145.66,3.4328]
[1728678768126,3.4322,145.69,145.65,16.8329]
[1728678768334,8.46,145.68,145.65,4.94]
[1728678768823,3.4327,145.67,145.65,4.94]
[1728678769726,3.4324,145.68,145.65,4.94]
[1728678771716,3.4324,145.68,145.65,8.373]
[1728678785341,3.4324,145.68,145.65,3.433]
[1728678792343,13.52502,145.73,145.68,3.4322]
[1728678792543,13.52502,145.73,145.68,11.8922]
[1728678792748,3.4315,145.72,145.69,3.432]
[1728678797055,3.55612,145.73,145.7,11.8917]
[1728678803057,3.55612,145.73,145.71,3.4315]
[1728678804656,3.55612,145.73,145.7,8.46]
[1728678804854,0.12502,145.73,145.7,8.46]
[1728678806265,0.12502,145.73,145.71,3.4316]
[1728678807360,0.12502,145.73,145.71,8.46]
[1728678807564,0.12502,145.73,145.7,4.94]
[1728678807565,0.12502,145.73,145.72,11.8914]
[1728678811662,103.02482404,145.76,145.72,8.46]
[1728678811865,3.4301,145.78,145.75,3.4307]
[1728678812763,3.4301,145.78,145.74,11.8907]
[1728678813666,8.58502,145.79,145.74,11.8907]
[1728678813971,3.4302,145.77,145.74,11.8907]
[1728678824876,3.4302,145.77,145.75,3.4307]
[1728678825271,0.12502,145.79,145.75,8.46]
[1728678825570,3.55482,145.79,145.77,8.46]
[1728678825775,3.55482,145.79,145.78,8.46]
[1728678825776,0.12502,145.79,145.78,8.46]
[1728678825972,0.12502,145.79,145.78,11.8899]
[1728678826173,0.12502,145.79,145.78,3.4299]
[1728678826373,0.12502,145.79,145.77,8.46]
[1728678827380,0.12502,145.79,145.76,4.92]
[1728678828081,3.55492,145.79,145.76,8.3503]
[1728678829479,3.43,145.78,145.76,4.92]
[1728678830075,0.12502,145.79,145.76,4.92]
[1728678830277,3.55482,145.79,145.76,8.3504]
[1728678831185,8.58502,145.79,145.74,6.2173]
[1728678831485,3.4301,145.78,145.74,18.108]
[1728678831871,3.4301,145.78,145.75,3.4306]
[1728678832781,3.4302,145.77,145.74,8.3508]
[1728678833880,3.4302,145.77,145.74,4.92]
[1728678835077,3.4302,145.77,145.74,8.3509]
[1728678837381,3.4302,145.77,145.74,16.8109]
[1728678838586,3.4301,145.78,145.75,3.4306]
[1728678841794,3.4301,145.78,145.74,13.38]
[1728678841795,15.46145191,145.79,145.76,3.4304]
[1728678841997,12.01482,145.79,145.76,3.4304]
[1728678842392,8.46,145.77,145.76,3.4304]
[1728678842582,3.4309,145.74,145.71,3.4314]
[1728678842788,11.8909,145.74,145.71,3.4314]
[1728678847698,3.4309,145.74,145.71,3.4314]
[1728678848199,11.8909,145.74,145.71,3.4314]
[1728678849694,8.46,145.74,145.71,3.4314]
[1728678849893,11.8908,145.75,145.71,11.8914]
[1728678850196,13.38,145.78,145.74,8.46]
[1728678850593,3.4304,145.76,145.74,8.46]
[1728678850898,8.54231025,145.79,145.74,8.46]
[1728678851093,3.4301,145.78,145.74,8.46]
[1728678851495,8.46,145.78,145.74,11.8908]
[1728678852098,3.4303,145.77,145.74,11.8908]
[1728678853200,7.05211025,145.79,145.76,3.4303]
[1728678853991,3.55482,145.79,145.76,11.8903]
[1728678854795,3.55482,145.79,145.76,3.4303]
[1728678857099,0.12502,145.79,145.77,3.4302]
[1728678857301,0.12502,145.79,145.77,11.8902]
[1728678857596,0.12502,145.79,145.77,8.46]
[1728678857791,0.12502,145.79,145.74,4.92]
[1728678857792,0.12502,145.79,145.78,11.8899]
[1728678863706,0.12518,145.8,145.78,8.46]
[1728678863904,0.12502,145.85,145.78,1.3047]
[1728678864110,0.12502,145.85,145.82,8.46]
[1728678865397,0.12502,145.85,145.83,3.4286]
[1728678866707,0.12502,145.85,145.82,8.46]
[1728678866898,0.12502,145.85,145.84,3.4285]
[1728678867406,0.12502,145.85,145.84,11.8885]
[1728678869705,3.55212,145.91,145.87,3.4278]
[1728678870007,3.55212,145.91,145.88,8.46]
[1728678870912,0.12502,145.91,145.89,8.46]
[1728678871809,0.12502,145.91,145.88,8.46]
[1728678872203,0.12502,145.91,145.89,3.4274]
[1728678874813,0.12502,145.91,145.88,8.46]
[1728678875015,0.12502,145.91,145.88,11.8874]
[1728678876003,0.12502,145.91,145.89,11.8873]
[1728678877211,0.12502,145.91,145.89,16.8073]
[1728678880215,0.12502,145.91,145.89,13.38]
[1728678880412,0.12502,145.91,145.9,3.4271]
[1728678880612,0.12502,145.91,145.9,11.8871]
[1728678885018,0.12502,145.91,145.9,3.4271]
[1728678885219,0.12502,145.91,145.89,13.38]
[1728678885424,8.58502,145.91,145.84,1.3668]
[1728678885610,12.01202,145.91,145.86,8.46]
[1728678886020,12.01202,145.91,145.87,11.8877]
[1728678886217,12.01202,145.91,145.87,3.4277]
[1728678886719,3.55202,145.91,145.88,11.8876]
[1728678886920,0.12502,145.91,145.88,16.8076]
[1728678887222,0.12502,145.91,145.9,11.8871]
[1728678894323,3.55052,145.97,145.93,3.4263]
[1728678894621,3.55052,145.97,145.93,16.8063]
[1728678895925,12.01052,145.97,145.93,16.8063]
[1728678897324,3.55052,145.97,145.93,16.8063]
[1728678900830,12.01052,145.97,145.93,16.8063]
[1728678902624,3.55052,145.97,145.93,16.8063]
[1728678905329,3.4261,145.95,145.92,8.3466]
[1728678905530,8.58502,145.97,145.92,13.38]
[1728678905731,0.12502,145.97,145.93,8.46]
[1728678905936,3.4258,145.96,145.93,11.8863]
[1728678907530,0.12502,145.97,145.92,4.92]
[1728678907531,0.12502,145.97,145.96,3.4257]
[1728678907733,0.12502,145.97,145.96,11.8857]
[1728678912247,0.12518,145.99,145.98,3.4252]
[1728678912536,0.12518,145.99,145.98,16.8052]
[1728678913237,0.12518,145.99,145.98,8.3452]
[1728678913537,0.12518,145.99,145.98,16.8052]
[1728678914835,0.12518,145.99,145.98,8.3452]
[1728678915038,0.12518,145.99,145.98,16.8052]
[1728678924844,0.12518,145.99,145.98,13.38]
[1728678926849,0.12518,145.99,145.98,4.92]
[1728678927056,0.12518,145.99,145.98,13.38]
[1728678928051,3.55018,145.99,145.98,4.92]
[1728678928356,3.55018,145.99,145.98,13.38]
[1728678928555,0.12518,145.99,145.98,13.38]
[1728678930746,3.55018,145.99,145.98,13.38]
[1728678939961,0.12518,145.99,145.98,13.38]
[1728678942155,0.12518,145.99,145.98,16.8052]
[1728678948269,0.12518,145.99,145.98,8.3452]
[1728678952067,0.12518,145.99,145.98,4.92]
[1728678956973,0.12518,145.99,145.94,1.4257]
[1728678957166,3.55018,145.99,145.97,8.46]
[1728678958474,0.12518,145.99,145.97,8.46]
[1728678958672,3.4252,145.98,145.96,8.46]
[1728678960773,3.4252,145.98,145.96,13.36]
[1728678964780,3.4256,145.97,145.94,3.4261]
[1728678965076,3.4256,145.97,145.95,4.9]
[1728678965277,8.46,145.98,145.95,4.9]
[1728678965473,3.4257,145.96,145.95,4.9]
[1728678965679,0.12518,145.99,145.95,4.9]
[1728678965874,8.46,145.98,145.95,4.9]
[1728678967377,3.4255,145.97,145.95,4.9]
[1728678969877,3.4258,145.96,145.93,4.9]
[1728678970074,8.46,145.97,145.93,4.9]
[1728678970075,8.46,145.97,145.93,13.36]
[1728678970274,8.46,145.98,145.94,8.46]
[1728678971383,3.4256,145.97,145.94,11.8861]
[1728678973892,3.4257,145.96,145.93,8.3263]
[1728678978803,3.4257,145.96,145.93,4.9]
[1728678978998,3.426,145.95,145.93,4.9]
[1728678979900,3.4258,145.96,145.93,8.3264]
[1728678980692,3.426,145.95,145.93,4.9]
[1728678980892,8.46,145.95,145.87,2.7778]
[1728678981099,8.46,145.94,145.9,4.9]
[1728678981296,3.4265,145.93,145.9,8.3271]
[1728678981699,11.8863,145.94,145.9,8.3271]
[1728678982203,11.8863,145.94,145.9,16.7871]
[1728678982403,11.8863,145.94,145.91,3.55182]
[1728678985208,8.46,145.94,145.91,0.12502]
[1728678985412,3.4265,145.93,145.91,0.12502]
[1728678986108,8.46,145.94,145.91,0.12502]
[1728678986310,3.4267,145.92,145.91,0.12502]
[1728678988808,8.46,145.93,145.91,0.12502]
[1728678988809,3.4115511,145.95,145.92,3.4266]
[1728678989007,3.4115511,145.95,145.91,8.58502]
[1728678989008,8.46,145.96,145.91,8.58502]
[1728678989210,8.46,145.97,145.92,8.46]
[1728678989907,7.6625,145.98,145.92,8.46]
[1728678990107,8.46,145.96,145.92,8.46]
[1728678990419,11.8859,145.96,145.93,3.4264]
[1728678990803,8.46,145.97,145.92,8.46]
[1728678991003,11.8857,145.97,145.93,3.4262]
[1728678991624,11.8859,145.96,145.93,3.4262]
[1728678991817,8.46,145.94,145.91,5.02502]
[1728678992112,7.6625,145.98,145.91,5.02502]
[1728678992113,8.46,145.93,145.91,5.02502]
[1728678992803,3.4267,145.92,145.91,5.02502]
[1728678993003,11.8867,145.92,145.91,0.12502]
[1728678995919,3.4267,145.92,145.91,0.12502]
[1728678996114,11.8865,145.93,145.91,0.12502]
[1728678997822,3.4267,145.92,145.91,0.12502]
[1728678998120,11.8867,145.92,145.91,0.12502]
[1728679006032,3.44163551,145.94,145.85,13.48502]
[1728679006033,1.3783,145.93,145.85,13.48502]
[1728679006224,8.46,145.9,145.85,13.48502]
[1728679007126,3.4274,145.89,145.86,3.4279]
[1728679009932,11.8874,145.89,145.86,3.4279]
[1728679012436,11.8874,145.89,145.85,8.45322]
[1728679013023,11.8877,145.88,145.85,8.45322]
[1728679013428,8.46,145.88,145.85,5.02502]
[1728679013631,3.4278,145.87,145.85,5.02502]
[1728679014537,8.46,145.88,145.85,5.02502]
[1728679014835,11.8877,145.88,145.85,8.45322]
[1728679015224,4.9,145.92,145.85,13.48502]
[1728679015430,11.8871,145.9,145.87,3.4278]
[1728679016332,3.4275,145.89,145.86,3.428]
[1728679020040,11.8875,145.89,145.86,3.428]
[1728679030540,4.9,145.92,145.85,13.48502]
[1728679030737,8.46,145.91,145.86,8.46]
[1728679031246,3.4272,145.9,145.87,3.4277]
[1728679033946,11.8872,145.9,145.87,3.4277]
[1728679035050,11.887,145.91,145.88,3.4276]
[1728679041455,11.887,145.91,145.86,8.46]
[1728679041456,11.887,145.91,145.85,5.02502]
[1728679041660,11.887,145.91,145.87,3.4277]
[1728679048663,11.887,145.91,145.88,3.4276]
[1728679058367,3.4272,145.9,145.88,3.4276]
[1728679064175,3.4272,145.9,145.87,8.3277]
[1728679065572,8.46,145.91,145.87,4.9]
[1728679065773,11.8876,145.88,145.87,4.9]
[1728679067872,11.8876,145.88,145.85,3.55312]
[1728679069481,8.46,145.88,145.85,3.55312]
[1728679070180,8.46,145.88,145.85,8.45312]
[1728679072379,11.8877,145.88,145.85,8.45312]
[1728679073279,8.46,145.86,145.85,0.12502]
[1728679073980,11.8881,145.86,145.85,0.12502]
[1728679078387,3.4281,145.86,145.85,0.12502]
[1728679078576,11.8881,145.86,145.85,0.12502]
[1728679079182,3.4281,145.86,145.85,0.12502]
[1728679079383,1.3615,145.88,145.85,0.12502]
[1728679079578,9.8215,145.88,145.85,0.12502]
[1728679079890,8.46,145.87,145.85,0.12502]
[1728679080587,11.888,145.87,145.85,0.12502]
[1728679080983,1.3615,145.88,145.85,0.12502]
[1728679081197,1.3615,145.88,145.85,3.55322]
[1728679081198,3.4277,145.88,145.85,3.55322]
[1728679081378,11.8877,145.88,145.85,3.55322]
[1728679084288,3.4277,145.88,145.85,0.12502]
[1728679084495,11.8877,145.88,145.86,3.428]
[1728679086187,11.8877,145.88,145.85,3.55322]
[1728679092894,11.8881,145.86,145.85,0.12502]
[1728679093600,11.8879,145.87,145.85,0.12502]
[1728679093795,8.46,145.87,145.85,0.12502]
[1728679095490,3.4281,145.86,145.85,0.12502]
[1728679095788,11.8881,145.86,145.85,0.12502]
[1728679105700,3.4281,145.86,145.85,0.12502]
[1728679105906,11.8881,145.86,145.85,0.12502]
[1728679108208,15.31137207,145.86,145.85,0.12502]
[1728679111713,6.85137207,145.86,145.85,0.12502]
[1728679111909,15.31137207,145.86,145.85,0.12502]
[1728679120211,6.85137207,145.86,145.85,0.12502]
[1728679120412,15.31137207,145.86,145.85,0.12502]
[1728679128216,1.357,145.88,145.85,0.12502]
[1728679128517,1.4008,145.93,145.85,8.58502]
[1728679128712,1.4008,145.93,145.86,8.46]
[1728679128912,1.4008,145.93,145.87,13.36]
[1728679129107,8.46,145.92,145.87,13.36]
[1728679129818,8.46,145.91,145.89,3.4272]
[1728679130117,8.46,145.9,145.87,4.9]
[1728679130512,8.46,145.9,145.87,8.3276]
[1728679130818,8.46,145.91,145.87,4.9]
[1728679131007,8.46,145.92,145.87,13.36]
[1728679131416,11.8868,145.92,145.89,3.4273]
[1728679131812,3.4268,145.92,145.89,3.4273]
[1728679132011,3.44163551,145.94,145.88,8.46]
[1728679132212,11.8865,145.93,145.9,3.4271]
[1728679132517,11.97267991,145.93,145.88,8.46]
[1728679132712,8.46,145.93,145.88,8.46]
[1728679132918,11.91898475,145.93,145.88,8.46]
[1728679133421,11.91898475,145.93,145.89,3.4272]
[1728679133717,4.9,145.95,145.89,3.4272]
[1728679133718,8.46,145.92,145.89,3.4272]
[1728679134918,11.8867,145.92,145.89,3.4272]
[1728679144730,11.8867,145.92,145.89,11.8872]
[1728679147635,11.8867,145.92,145.89,3.4272]
[1728679149336,102.88546077,145.96,145.91,8.46]
[1728679149540,102.88546077,145.96,145.94,8.46]
[1728679150240,106.31126077,145.96,145.93,11.8863]
[1728679151835,102.88546077,145.96,145.93,8.46]
[1728679152032,102.88546077,145.96,145.95,8.46]
[1728679152839,102.88546077,145.96,145.94,3.4262]
[1728679153836,3.55062,145.97,145.94,3.4262]
[1728679154545,3.55062,145.97,145.95,3.4259]
[1728679156442,3.55062,145.97,145.93,13.34]
[1728679156638,3.55062,145.97,145.94,3.426]
[1728679164247,0.12502,145.97,145.95,3.4258]
[1728679166543,0.12502,145.97,145.95,3.426]
[1728679171455,3.55052,145.97,145.94,3.4261]
[1728679173362,3.55052,145.97,145.95,3.4259]
[1728679173960,0.12502,145.97,145.95,3.4259]
[1728679175456,3.55052,145.97,145.94,3.426]
[1728679175757,0.12502,145.97,145.94,8.46]
[1728679176354,0.12502,145.97,145.96,8.46]
[1728679176554,0.12502,145.97,145.96,13.34]
[1728679177455,0.12502,145.97,145.96,16.7657]
[1728679189372,0.12502,145.97,145.96,8.3057]
[1728679196574,0.12502,145.97,145.96,16.7657]
[1728679197073,0.12502,145.97,145.96,13.34]
[1728679197263,0.12502,145.97,145.96,4.88]
[1728679198173,0.12502,145.97,145.95,11.8859]
[1728679206088,0.12502,145.97,145.95,8.46]
[1728679206382,0.12502,145.97,145.96,3.4257]
[1728679212992,0.12502,145.97,145.94,4.88]
[1728679213290,8.58502,145.97,145.92,13.34]
[1728679213883,0.12502,145.97,145.94,8.46]
[1728679214288,0.12502,145.97,145.94,11.886]
[1728679215486,0.12502,145.97,145.94,8.46]
[1728679215689,0.12502,145.97,145.95,3.4259]
[1728679216593,0.12502,145.97,145.96,3.4257]
[1728679219593,0.12502,145.97,145.95,8.46]
[1728679219888,0.12502,145.97,145.95,3.4258]
[1728679221688,3.55052,145.97,145.95,3.4258]
[1728679239502,0.12502,145.97,145.95,3.4258]
[1728679252019,0.12502,145.97,145.96,11.8857]
[1728679252229,0.12502,145.97,145.96,3.4257]
[1728679260929,3.55052,145.97,145.94,3.4261]
[1728679262031,0.12502,145.97,145.94,3.4261]
[1728679262427,0.12502,145.97,145.95,3.4259]
[1728679263133,0.12502,145.97,145.96,3.4257]
[1728679267534,0.12502,145.97,145.96,11.8857]
[1728679270836,0.12502,145.97,145.96,13.2961]
[1728679271229,0.12518,145.99,145.98,3.4252]
[1728679271535,0.12502,146.03,146.01,8.46]
[1728679272425,0.12502,146.03,146.02,3.4243]
[1728679277340,0.12502,146.03,146.0,8.46]
[1728679277538,0.12502,146.03,146.01,3.4244]
[1728679282537,0.12502,146.03,146.01,11.8844]
[1728679284850,0.12502,146.03,146.02,3.4243]
[1728679285952,0.12502,146.03,146.01,8.46]
[1728679286142,0.12502,146.03,146.01,11.8844]
[1728679286347,0.12502,146.03,146.01,8.46]
[1728679286547,0.12502,146.03,146.02,3.4243]
[1728679287846,0.12502,146.03,146.02,11.8843]
[1728679289153,0.12502,146.03,146.02,3.4243]
[1728679293056,0.12502,146.03,146.01,16.7644]
[1728679300360,0.12502,146.03,146.01,11.8844]
[1728679301064,0.12502,146.03,146.02,11.8843]
[1728679304767,0.12502,146.03,146.02,15.2845054]
[1728679305067,3.423,146.08,146.05,3.4235]
[1728679305261,3.423,146.08,146.06,8.46]
[1728679305455,6.86257548,146.08,146.06,8.46]
[1728679307169,1.51742,146.09,146.06,8.46]
[1728679307468,3.54772,146.09,146.06,11.8832]
[1728679308381,3.4229,146.08,146.06,8.46]
[1728679310477,3.4229,146.08,146.05,11.8835]
[1728679311078,3.4229,146.08,146.05,3.4235]
[1728679311279,3.4229,146.08,146.05,11.8835]
[1728679316179,0.12502,146.09,146.04,8.46]
[1728679316383,0.12502,146.09,146.05,8.46]
[1728679316575,0.12502,146.09,146.06,8.46]
[1728679316880,3.54772,146.09,146.06,11.8832]
[1728679317080,3.54772,146.09,146.06,8.46]
[1728679317971,3.54772,146.09,146.06,11.8833]
[1728679321480,8.58502,146.09,146.03,1.2949]
[1728679321686,8.58502,146.09,146.05,3.4236]
[1728679321883,8.58502,146.09,146.04,8.46]
[1728679322186,3.423,146.08,146.05,3.4236]
[1728679323080,3.423,146.08,146.05,11.8836]
[1728679331787,3.4233,146.07,146.05,8.46]
[1728679331988,0.12502,146.09,146.05,8.46]
[1728679332792,3.423,146.08,146.05,11.8834]
[1728679333693,3.423,146.08,146.05,3.4234]
[1728679333988,3.423,146.08,146.05,11.8834]
[1728679336099,3.54782,146.09,146.06,3.4233]
[1728679336601,3.54782,146.09,145.97,1.53912]
[1728679336602,3.424,146.04,146.0,3.4246]
[1728679336802,8.46,146.05,146.0,3.4246]
[1728679337504,3.4241,146.03,146.0,3.4246]
[1728679338195,8.46,146.02,145.97,8.58502]
[1728679339306,3.4247,146.01,145.97,0.12502]
[1728679339604,11.8847,146.01,145.97,0.12502]
[1728679340502,11.8847,146.01,145.97,3.55032]
[1728679342903,11.8847,146.01,145.97,8.41032]
[1728679343408,11.8847,146.01,145.97,4.98502]
[1728679343603,4.86,146.04,145.98,8.46]
[1728679343798,8.46,146.03,145.99,8.46]
[1728679345507,11.8842,146.03,146.0,3.4248]
[1728679347202,4.86,146.04,145.99,8.46]
[1728679347412,8.46,146.05,145.99,8.46]
[1728679347799,6.2366,146.07,146.01,8.46]
[1728679348000,4.86,146.07,146.01,8.46]
[1728679348205,11.8832,146.07,146.04,3.4237]
[1728679348399,8.46,146.06,146.01,8.46]
[1728679349406,11.8834,146.06,146.03,3.4239]
[1728679351610,3.4236,146.05,146.0,13.32]
[1728679351807,3.4236,146.05,146.02,3.4242]
[1728679356613,11.8835,146.06,146.03,3.424]
[1728679357313,11.8835,146.06,146.01,8.46]
[1728679357314,11.8832,146.07,146.05,3.4236]
[1728679357814,11.8832,146.07,146.01,8.46]
[1728679358207,11.8832,146.07,146.04,3.4237]
[1728679360618,1.3519,146.08,146.04,3.4237]
[1728679360619,11.8834,146.06,146.04,3.4237]
[1728679361922,11.8834,146.06,146.0,13.32]
[1728679362120,11.8834,146.06,146.03,3.424]
[1728679362321,8.46,146.06,146.0,13.32]
[1728679362517,8.46,146.04,146.0,13.32]
[1728679362715,8.46,146.04,146.01,3.4245]
[1728679363321,8.46,146.04,146.02,3.4243]
[1728679367214,3.4238,146.05,146.02,3.4243]
[1728679367418,11.8838,146.05,146.02,3.4243]
[1728679372733,8.46,146.05,146.01,3.4245]
[1728679373428,3.424,146.04,146.01,3.4245]
[1728679378035,11.8837,146.05,146.02,3.4242]
[1728679378430,8.46,146.04,146.0,4.86]
[1728679378638,8.46,146.05,146.0,4.86]
[1728679379039,11.8838,146.05,146.01,3.4244]
[1728679379334,11.8838,146.05,146.0,4.86]
[1728679379933,11.8838,146.05,146.02,3.4243]
[1728679380938,8.46,146.05,146.02,3.4243]
[1728679381635,8.46,146.05,146.03,3.424]
[1728679382038,8.46,146.05,146.0,13.32]
[1728679382435,8.46,146.06,146.04,3.4237]
[1728679382639,8.46,146.06,146.0,13.32]
[1728679383035,8.46,146.06,146.05,3.4236]
[1728679384832,8.46,146.06,146.05,19.96930661]
[1728679385143,8.46,146.06,146.05,55.24594086]
[1728679385943,8.46,146.06,146.05,19.96930661]
[1728679386343,8.46,146.06,146.05,19.96864046]
[1728679386846,9.8119,146.08,146.07,3.4231]